fUSD/lending_fUSD_20250818
["ID","MTS","AMOUNT","RATE_DAILY","PERIOD"]
[380103990,1755545440963,-153.66457484,0.00010476,2]
[380103992,1755545440972,-150.0,0.00010476,2]
[380103994,1755545440981,-150.0,0.00010477,2]
[380103996,1755545440990,-150.0,0.00010482,2]
[380103998,1755545441000,-153.66457484,0.00010487,2]
[380104000,1755545441009,-150.0,0.00010487,2]
[380104002,1755545441018,-150.0,0.00010487,2]
[380104004,1755545441027,-150.0,0.00010487,2]
[380104006,1755545441037,-150.0,0.00010494,2]
[380104008,1755545441046,-153.66457484,0.00010498,2]
[380104010,1755545441055,-150.0,0.00010502,2]
[380104012,1755545441064,-150.0,0.00010504,2]
[380104014,1755545441073,-153.66457484,0.00010509,2]
[380104016,1755545441083,-150.0,0.00010511,2]
[380104018,1755545441093,-150.0,0.00010513,2]
[380104020,1755545441102,-150.0,0.00010515,2]
[380104022,1755545441112,-150.0,0.00010515,2]
[380104024,1755545441121,-153.66457484,0.0001052,2]
[380104026,1755545441134,-150.0,0.0001052,2]
[380104028,1755545441143,-150.0,0.0001052,2]
[380104030,1755545441153,-150.0,0.00010524,2]
[380104032,1755545441162,-150.0,0.00010531,2]
[380104034,1755545441171,-153.66457484,0.00010531,2]
[380104036,1755545441181,-150.0,0.00010532,2]
[380104038,1755545441190,-150.0,0.00010534,2]
[380104040,1755545441199,-150.0,0.00010537,2]
[380104042,1755545441210,-150.0,0.00010541,2]
[380104044,1755545441219,-1596.97,0.00010541,2]
[380104046,1755545441228,-798.63,0.00010541,2]
[380104048,1755545441237,-797.18,0.00010541,2]
[380104050,1755545441246,-153.66457484,0.00010542,2]
[380104052,1755545441255,-150.0,0.00010551,2]
[380104054,1755545441265,-153.66457484,0.00010554,2]
[380104056,1755545441274,-150.0,0.00010554,2]
[380104058,1755545441283,-150.0,0.00010554,2]
[380104060,1755545441292,-150.0,0.00010555,2]
[380104062,1755545441301,-150.0,0.00010558,2]
[380104064,1755545441310,-153.66457484,0.00010565,2]
[380104066,1755545441319,-150.0,0.00010566,2]
[380104068,1755545441328,-150.0,0.00010568,2]
[380104070,1755545441336,-150.0,0.0001057,2]
[380104072,1755545441346,-150.0,0.00010571,2]
[380104074,1755545441355,-153.66457484,0.00010576,2]
[380104076,1755545441364,-150.0,0.00010582,2]
[380104078,1755545441374,-150.0,0.00010584,2]
[380104080,1755545441382,-153.66457484,0.00010587,2]
[380104082,1755545441391,-150.0,0.00010587,2]
[380104084,1755545441400,-150.0,0.00010587,2]
[380104086,1755545441410,-150.0,0.00010587,2]
[380104088,1755545441419,-150.0,0.00010589,2]
[380104090,1755545441428,-150.0,0.00010594,2]
[380104092,1755545441437,-153.66457484,0.00010598,2]
[380104094,1755545441446,-150.0,0.00010599,2]
[380104096,1755545441455,-150.0,0.000106,2]
[380104098,1755545441464,-150.0,0.00010607,2]
[380104100,1755545441473,-153.66457484,0.00010609,2]
[380104102,1755545441482,-150.0,0.00010611,2]
[380104104,1755545441491,-153.66457484,0.0001062,2]
[380104107,1755545441502,-150.0,0.0001062,2]
[380104109,1755545441511,-150.0,0.0001062,2]
[380104111,1755545441521,-150.0,0.0001062,2]
[380104113,1755545441530,-150.0,0.0001062,2]
[380104115,1755545441538,-150.0,0.00010626,2]
[380104117,1755545441547,-284.93,0.00010627,2]
[380104119,1755545441556,-150.0,0.0001063,2]
[380104121,1755545441566,-150.0,0.00010631,2]
[380104123,1755545441575,-153.66457484,0.00010631,2]
[380104125,1755545441584,-150.0,0.00010633,2]
[380104127,1755545441593,-150.0,0.00010637,2]
[380104129,1755545441603,-150.0,0.00010638,2]
[380104131,1755545441612,-150.0,0.00010639,2]
[380104133,1755545441621,-153.66457484,0.00010642,2]
[380104135,1755545441630,-150.0,0.00010645,2]
[380104137,1755545441640,-153.66457484,0.00010653,2]
[380104139,1755545441649,-150.0,0.00010653,2]
[380104141,1755545441658,-150.0,0.00010653,2]
[380104143,1755545441667,-150.0,0.0001066,2]
[380104145,1755545441676,-150.0,0.00010663,2]
[380104147,1755545441685,-150.0,0.00010664,2]
[380104149,1755545441694,-153.66457484,0.00010664,2]
[380104151,1755545441703,-150.0,0.00010665,2]
[380104152,1755545441712,-150.0,0.00010672,2]
[380104154,1755545441721,-150.0,0.00010672,2]
[380104156,1755545441730,-153.66457484,0.00010676,2]
[380104158,1755545441740,-300.0,0.00010678,2]
[380104160,1755545441749,-300.0,0.00010678,2]
[380104162,1755545441758,-150.0,0.00010678,2]
[380104165,1755545441768,-816.42,0.00010678,2]
[380104167,1755545441777,-150.0,0.00010683,2]
[380104169,1755545441786,-153.66457484,0.00010687,2]
[380104171,1755545441796,-150.0,0.00010687,2]
[380104173,1755545441805,-150.0,0.00010687,2]
[380104174,1755545441814,-150.0,0.00010687,2]
[380104176,1755545441823,-150.0,0.00010689,2]
[380104178,1755545441832,-150.0,0.00010692,2]
[380104180,1755545441841,-150.0,0.00010695,2]
[380104182,1755545441851,-150.0,0.00010697,2]
[380104184,1755545441859,-153.66457484,0.00010698,2]
[380104186,1755545441869,-150.0,0.00010702,2]
[380104188,1755545441878,-153.66457484,0.00010709,2]
[380104191,1755545441888,-150.0,0.00010712,2]
[380104192,1755545441897,-150.0,0.00010712,2]
[380104195,1755545441907,-150.0,0.00010712,2]
[380104197,1755545441916,-150.0,0.00010718,2]
[380104199,1755545441926,-150.0,0.00010719,2]
[380104201,1755545441935,-153.66457484,0.0001072,2]
[380104203,1755545441944,-150.0,0.0001072,2]
[380104205,1755545441954,-150.0,0.0001072,2]
[380104207,1755545441963,-150.0,0.00010721,2]
[380104209,1755545441972,-150.0,0.00010725,2]
[380104211,1755545441981,-150.0,0.00010728,2]
[380104213,1755545441991,-153.66457484,0.00010731,2]
[380104215,1755545442000,-150.0,0.00010737,2]
[380104217,1755545442009,-150.0,0.0001074,2]
[380104219,1755545442018,-153.66457484,0.00010742,2]
[380104221,1755545442028,-150.0,0.00010745,2]
[380104223,1755545442037,-150.0,0.00010749,2]
[380104225,1755545442046,-150.0,0.00010751,2]
[380104226,1755545442056,-153.66457484,0.00010753,2]
[380104229,1755545442065,-150.0,0.00010753,2]
[380104231,1755545442075,-150.0,0.00010753,2]
[380104233,1755545442086,-150.0,0.00010755,2]
[380104235,1755545442097,-150.0,0.00010759,2]
[380104236,1755545442107,-150.0,0.0001076,2]
[380104238,1755545442117,-153.66457484,0.00010764,2]
[380104239,1755545442128,-150.0,0.00010772,2]
[380104240,1755545442139,-153.66457484,0.00010775,2]
[380104241,1755545442149,-150.0,0.00010777,2]
[380104242,1755545442157,-150.0,0.00010778,2]
[380104243,1755545442167,-150.0,0.00010778,2]
[380104244,1755545442176,-232.06963825,0.0001078,2]
[380104245,1755545442185,-153.66457484,0.00010787,2]
[380104246,1755545442194,-150.0,0.00010787,2]
[380104247,1755545442204,-150.0,0.00010787,2]
[380104249,1755545442214,-150.0,0.00010787,2]
[380104251,1755545442224,-150.0,0.0001079,2]
[380104253,1755545442233,-150.0,0.00010792,2]
[380104255,1755545442243,-150.0,0.00010797,2]
[380104257,1755545442252,-153.66457484,0.00010798,2]
[380104259,1755545442262,-150.0,0.00010799,2]
[380104261,1755545442271,-150.0,0.00010808,2]
[380104263,1755545442279,-153.66457484,0.00010809,2]
[380104265,1755545442289,-150.0,0.00010813,2]
[380104267,1755545442298,-150.0,0.00010816,2]
[380104269,1755545442307,-153.66457484,0.0001082,2]
[380104271,1755545442316,-150.0,0.0001082,2]
[380104273,1755545442325,-150.0,0.0001082,2]
[380104275,1755545442335,-150.0,0.00010825,2]
[380104277,1755545442344,-150.0,0.00010826,2]
[380104279,1755545442353,-150.0,0.00010829,2]
[380104281,1755545442364,-150.0,0.00010829,2]
[380104283,1755545442373,-153.66457484,0.00010831,2]
[380104285,1755545442382,-150.0,0.00010835,2]
[380104287,1755545442392,-150.0,0.00010836,2]
[380104289,1755545442401,-150.0,0.00010838,2]
[380104291,1755545442412,-153.66457484,0.00010842,2]
[380104293,1755545442421,-150.0,0.00010852,2]
[380104295,1755545442429,-153.66457484,0.00010853,2]
[380104297,1755545442438,-150.0,0.00010853,2]
[380104299,1755545442448,-150.0,0.00010853,2]
[380104301,1755545442457,-150.0,0.00010854,2]
[380104303,1755545442466,-150.0,0.00010857,2]
[380104305,1755545442475,-153.66457484,0.00010864,2]
[380104307,1755545442486,-150.0,0.00010868,2]
[380104309,1755545442496,-150.0,0.00010869,2]
[380104311,1755545442506,-150.0,0.00010871,2]
[380104312,1755545442515,-150.0,0.00010873,2]
[380104314,1755545442524,-420.0,0.00010875,2]
[380104316,1755545442533,-153.66457484,0.00010875,2]
[380104318,1755545442542,-2000.0,0.00010875,2]
[380104320,1755545442552,-500.0,0.00010875,2]
[380104322,1755545442561,-500.0,0.00010876,2]
[380104324,1755545442570,-500.0,0.00010876,2]
[380104326,1755545442579,-150.0,0.00010879,2]
[380104328,1755545442588,-150.0,0.00010882,2]
[380104330,1755545442598,-277.35679052,0.00010883,2]
[380104332,1755545442607,-153.66457484,0.00010886,2]
[380104334,1755545442616,-150.0,0.00010886,2]
[380104336,1755545442625,-150.0,0.00010886,2]
[380104338,1755545442634,-150.0,0.00010886,2]
[380104340,1755545442644,-150.0,0.00010889,2]
[380104342,1755545442654,-150.0,0.00010892,2]
[380104344,1755545442663,-150.0,0.00010897,2]
[380104346,1755545442672,-153.66457484,0.00010898,2]
[380104349,1755545442683,-1000.0,0.000109,2]
[380104351,1755545442692,-999.7688,0.000109,2]
[380104353,1755545442704,-39233.1811,0.000109,2]
[380104355,1755545442713,-1123.74731026,0.000109,2]
[380104357,1755545442723,-162.77704006,0.000109,2]
[380104359,1755545442733,-150.0,0.00010906,2]
[380104361,1755545442743,-150.0,0.00010908,2]
[380104363,1755545442754,-153.66457484,0.00010909,2]
[380104365,1755545442764,-150.0,0.00010911,2]
[380104367,1755545442773,-153.66457484,0.0001092,2]
[380104369,1755545442783,-150.0,0.0001092,2]
[380104371,1755545442792,-150.0,0.0001092,2]
[380104373,1755545442802,-150.0,0.00010922,2]
[380104375,1755545442811,-150.0,0.00010927,2]
[380104377,1755545442821,-150.0,0.00010928,2]
[380104380,1755545442831,-150.0,0.00010929,2]
[380104383,1755545442840,-153.66457484,0.00010931,2]
[380104386,1755545442850,-150.0,0.00010933,2]
[380104388,1755545442867,-150.0,0.00010934,2]
[380104390,1755545442876,-843.78711038,0.00010935,2]
[380104392,1755545442885,-150.0,0.00010936,2]
[380104394,1755545442894,-1000.0,0.0001094,2]
[380104396,1755545442903,-1000.0,0.0001094,2]
[380104399,1755545442912,-1000.0,0.0001094,2]
[380104401,1755545442921,-1000.0,0.0001094,2]
[380104403,1755545442930,-1000.0,0.0001094,2]
[380104405,1755545442940,-1000.0,0.0001094,2]
[380104407,1755545442955,-1000.0,0.0001094,2]
[380104409,1755545442970,-1000.0,0.0001094,2]
[380104411,1755545442979,-153.66457484,0.00010942,2]
[380104413,1755545442989,-150.0,0.00010947,2]
[380104414,1755545443006,-150.0,0.00010948,2]
[380104417,1755545443016,-153.66457484,0.00010953,2]
[380104419,1755545443026,-150.0,0.00010953,2]
[380104421,1755545443035,-150.0,0.00010953,2]
[380104423,1755545443045,-150.0,0.00010954,2]
[380104425,1755545443055,-150.0,0.00010957,2]
[380104427,1755545443064,-2000.0,0.00010959,2]
[380104429,1755545443073,-150.0,0.00010959,2]
[380104431,1755545443082,-150.0,0.0001096,2]
[380104433,1755545443092,-1000.0,0.00010963,2]
[380104435,1755545443103,-153.66457484,0.00010964,2]
[380104437,1755545443112,-150.0,0.00010967,2]
[380104439,1755545443122,-500.0,0.00010973,2]
[380104441,1755545443134,-500.0,0.00010973,2]
[380104443,1755545443143,-500.0,0.00010973,2]
[380104445,1755545443152,-500.0,0.00010973,2]
[380104447,1755545443161,-500.0,0.00010973,2]
[380104449,1755545443170,-500.0,0.00010973,2]
[380104450,1755545443180,-500.0,0.00010973,2]
[380104452,1755545443190,-500.0,0.00010973,2]
[380104455,1755545443201,-153.66457484,0.00010975,2]
[380104457,1755545443211,-162.88651317,0.00010986,2]
[380104459,1755545443222,-153.66457484,0.00010986,2]
[380104461,1755545443231,-296.76469392,0.00010986,2]
[380104463,1755545443240,-269.44347805,0.00010986,2]
[380104465,1755545443249,-169.78108176,0.00010986,2]
[380104467,1755545443259,-150.0,0.00010986,2]
[380104469,1755545443269,-295.27295398,0.00010986,2]
[380104471,1755545443279,-150.0,0.00010986,2]
[380104473,1755545443288,-150.0,0.00010986,2]
[380104475,1755545443297,-150.0,0.00010986,2]
[380104477,1755545443307,-176.61748674,0.00010986,2]
[380104479,1755545443316,-213.04319939,0.00010986,2]
[380104481,1755545443326,-150.0,0.00010986,2]
[380104483,1755545443335,-150.0,0.00010986,2]
[380104485,1755545443345,-150.0,0.00010986,2]
[380104487,1755545443354,-413.00842179,0.00010991,2]
[380104489,1755545443363,-300.0,0.00010993,2]
[380104491,1755545443374,-160.0,0.00010993,2]
[380104493,1755545443383,-721.12765535,0.00010993,2]
[380104495,1755545443392,-250.0,0.00010993,2]
[380104497,1755545443401,-250.0,0.00010993,2]
[380104499,1755545443411,-250.0,0.00010993,2]
[380104501,1755545443420,-250.0,0.00010993,2]
[380104503,1755545443430,-250.0,0.00010993,2]
[380104505,1755545443439,-500.0,0.00010993,2]
[380104507,1755545443448,-250.0,0.00010993,2]
[380104509,1755545443457,-500.0,0.00010993,2]
[380104511,1755545443467,-250.0,0.00010993,2]
[380104513,1755545443476,-500.0,0.00010993,2]
[380104515,1755545443486,-500.0,0.00010993,2]
[380104517,1755545443496,-996.59942461,0.00010993,2]
[380104519,1755545443506,-584.93012321,0.00010993,2]
[380104521,1755545443516,-151.0,0.00010993,2]
[380104523,1755545443526,-212.00699823,0.00010997,2]
[380104525,1755545443535,-458.40919931,0.00010997,2]
[380104527,1755545443545,-156.3684064,0.00010999,2]
[380104529,1755545443555,-2000.0,0.00010999,2]
[380104531,1755545443564,-153.493,0.00010999,2]
[380104533,1755545443574,-1059.836,0.00010999,2]
[380104566,1755545443844,-687.0,0.00011,2]
[380104568,1755545443879,-4889023.01280228,0.00011,2]
[380104571,1755545443896,-46617.03870625,0.00011,2]
[380104584,1755545444024,-6893.47916864,0.00011,2]
[380104588,1755545444053,-1181.2,0.00011,2]
[380104663,1755545444879,-356.10212549,0.00010931,2]
[380104919,1755545447357,-2061.85441124,0.0001089,2]
[380105243,1755545713655,170.0,9.971e-05,7]
[380105247,1755546510178,205.09843966,0.00021918,120]
[380105248,1755546525786,-300.0,9.595e-05,2]
[380105249,1755546615051,225.98281231,0.00012877,10]
[380105250,1755546615458,225.98281231,0.00013214,11]
[380105252,1755546631323,-139.46,9.578e-05,2]
[380105253,1755546631499,-21.08,9.578e-05,2]
[380105254,1755546631509,-139.46,9.587e-05,2]
[380105284,1755546633558,-360.54,9.587e-05,2]
[380105286,1755546633568,-166.57,9.595e-05,2]
[380105288,1755546633577,-294.89,9.631e-05,2]
[380105289,1755546633587,-500.0,9.634e-05,2]
[380105290,1755546633597,-500.0,9.635e-05,2]
[380105291,1755546633606,-1000.0,9.639e-05,2]
[380105292,1755546633615,-200.0,9.74e-05,2]
[380105293,1755546633625,-500.0,9.754e-05,2]
[380105294,1755546633634,-500.0,9.771e-05,2]
[380105295,1755546633644,-834.33,9.871e-05,2]
[380105296,1755546633653,-1200.0,9.887e-05,2]
[380105297,1755546633663,-150.0,9.888e-05,2]
[380105298,1755546633672,-150.0,9.888e-05,2]
[380105299,1755546633682,-150.0,9.888e-05,2]
[380105300,1755546633691,-150.0,9.888e-05,2]
[380105301,1755546633701,-150.00000001,9.888e-05,2]
[380105302,1755546633712,-169.07,9.94e-05,2]
[380105303,1755546633722,-300.0,9.958e-05,2]
[380105304,1755546633731,-1500.0,9.959e-05,2]
[380105305,1755546633740,-150.0,9.998e-05,2]
[380105306,1755546633750,-176.6,0.0001008,2]
[380105307,1755546633759,-150.0,0.00010107,2]
[380105308,1755546633769,-500.0,0.00010137,2]
[380105309,1755546633778,-150.0,0.00010162,2]
[380105310,1755546633787,-10476.63,0.00010178,2]
[380105311,1755546633797,-176.6,0.0001018,2]
[380105312,1755546633806,-150.0,0.00010217,2]
[380105313,1755546633816,-7328.5317209,0.00010234,2]
[380105314,1755546633825,-150.0,0.00010254,2]
[380105315,1755546633835,-150.0,0.00010327,2]
[380105316,1755546633844,-167.04,0.00010352,2]
[380105317,1755546633855,-150.0,0.00010352,2]
[380105318,1755546633864,-346.65,0.000104,2]
[380105319,1755546633873,-150.0,0.00010437,2]
[380105320,1755546633883,-150.0,0.00010437,2]
[380105321,1755546633892,-277.35679052,0.00010449,2]
[380105322,1755546633902,-1077.4,0.000105,2]
[380105323,1755546633911,-150.0,0.000105,2]
[380105324,1755546633922,-521.1,0.000105,2]
[380105325,1755546633932,-798.63,0.000105,2]
[380105326,1755546633941,-173.56,0.000105,2]
[380105327,1755546633951,-798.63,0.000105,2]
[380105328,1755546633960,-150.0,0.000105,2]
[380105329,1755546633969,-173.56,0.000105,2]
[380105330,1755546633979,-500.0,0.00010536,2]
[380105331,1755546633988,-150.0,0.00010547,2]
[380105332,1755546633998,-458.40919931,0.00010553,2]
[380105333,1755546634007,-1000.0,0.00010594,2]
[380105334,1755546634017,-2000.0,0.00010594,2]
[380105335,1755546634027,-500.0,0.00010594,2]
[380105336,1755546634037,-150.0,0.0001062,2]
[380105337,1755546634048,-1597.26,0.0001064,2]
[380105338,1755546634057,-150.0,0.00010657,2]
[380105339,1755546634067,-9437.84986792,0.00010677,2]
[380105340,1755546634077,-250.0,0.00010699,2]
[380105341,1755546634088,-1596.97,0.000107,2]
[380105342,1755546634098,-2370.18,0.000107,2]
[380105343,1755546634108,-316.54,0.000107,2]
[380105344,1755546634118,-150.0,0.000107,2]
[380105345,1755546634129,-313.03,0.000107,2]
[380105346,1755546634138,-150.0,0.00010712,2]
[380105347,1755546634148,-300.0,0.00010713,2]
[380105348,1755546634157,-721.12765535,0.00010713,2]
[380105349,1755546634166,-160.0,0.00010713,2]
[380105350,1755546634175,-500.0,0.00010713,2]
[380105351,1755546634185,-24906.3373,0.0001072,2]
[380105352,1755546634195,-150.0,0.00010767,2]
[380105353,1755546634204,-464.39105318,0.00010791,2]
[380105354,1755546634213,-3382.8507,0.00010791,2]
[380105355,1755546634224,-510.69616266,0.00010808,2]
[380105356,1755546634233,-1534.095,0.00010831,2]
[380105357,1755546634242,-294.89,0.00010835,2]
[380105358,1755546634252,-153.572,0.00010835,2]
[380105359,1755546634261,-1000.0,0.00010844,2]
[380105360,1755546634271,-843.78711038,0.00010859,2]
[380105361,1755546634281,-1680.0,0.00010875,2]
[380105362,1755546634291,-150.0,0.00010876,2]
[380105363,1755546634302,-3564.37481724,0.00010891,2]
[380105364,1755546634311,-4721.72566322,0.000109,2]
[380105365,1755546634567,-286.85880444,9.638e-05,2]
[380105366,1755546634577,-990.94042591,0.000109,2]
[380105367,1755546634834,-4287.33391087,0.000109,2]
[380105368,1755546634844,-572.84217625,0.000109,2]
[380105369,1755546634855,-162.77704006,0.000109,2]
[380105370,1755546634866,-1000.0,0.00010925,2]
[380105371,1755546634876,-165.96,0.00010947,2]
[380105372,1755546634886,-3120.87301196,0.00010953,2]
[380105373,1755546634896,-500.0,0.00010959,2]
[380105374,1755546634906,-2000.0,0.00010959,2]
[380105375,1755546634916,-200.0,0.00010959,2]
[380105376,1755546634925,-500.0,0.00010973,2]
[380105377,1755546634935,-500.0,0.00010973,2]
[380105378,1755546634945,-500.0,0.00010973,2]
[380105379,1755546634954,-438.20552529,0.00010973,2]
[380105380,1755546634963,-500.0,0.00010973,2]
[380105381,1755546634972,-500.0,0.00010973,2]
[380105382,1755546634982,-495.84403226,0.00010973,2]
[380105383,1755546634991,-500.0,0.00010973,2]
[380105384,1755546635001,-500.0,0.00010973,2]
[380105385,1755546635010,-500.0,0.00010973,2]
[380105386,1755546635019,-500.0,0.00010973,2]
[380105387,1755546635029,-232.47421764,0.00010986,2]
[380105388,1755546635038,-161.23864734,0.00010986,2]
[380105389,1755546635047,-202.7854072,0.00010986,2]
[380105390,1755546635057,-206.5042108,0.00010992,2]
[380105391,1755546635067,-212.00699823,0.00010995,2]
[380105392,1755546635077,-500.0,0.00010998,2]
[380105393,1755546635086,-2272.0,0.00010998,2]
[380105394,1755546635095,-500.0,0.00010998,2]
[380105395,1755546635106,-1399.0,0.00010998,2]
[380105396,1755546635116,-150.0,0.00010998,2]
[380105397,1755546635125,-500.0,0.00010998,2]
[380105398,1755546635135,-150.0,0.00010998,2]
[380105399,1755546635144,-500.0,0.00010998,2]
[380105400,1755546635289,-150.0,0.00010998,2]
[380105401,1755546635392,-500.0,0.00010998,2]
[380105402,1755546635402,-500.0,0.00010998,2]
[380105403,1755546635412,-204.69610861,0.00010998,2]
[380105404,1755546635421,-1076.0,0.00010998,2]
[380105405,1755546635430,-500.0,0.00010998,2]
[380105406,1755546635440,-500.0,0.00010998,2]
[380105407,1755546635450,-500.0,0.00010998,2]
[380105408,1755546635463,-500.0,0.00010998,2]
[380105409,1755546635472,-5000.0,0.00010998,2]
[380105410,1755546635482,-986.0,0.00011,2]
[380105411,1755546635491,-30710.56836454,0.00011,2]
[380105412,1755546635502,-1481764.31335268,0.00011,2]
[380105413,1755546635514,-6460.43369982,0.00011,2]
[380105414,1755546635769,-9384.79812459,0.00011,2]
[380105415,1755546635780,-12035.18468182,0.00011,2]
[380105717,1755546641044,-212.00699823,0.00010995,2]
[380105719,1755546641054,-500.0,0.00010998,2]
[380105721,1755546641064,-1803.53126077,0.00011,2]
[380105723,1755546641076,-194.75638452,0.00011,2]
[380105725,1755546641086,-910.34986262,0.00011,2]
[380105727,1755546641097,-23646.99454377,0.00011,2]
[380105738,1755546641183,-4696.98796006,0.00011,2]
[380105741,1755546641194,-62337.10755221,0.00011,2]
[380105751,1755546641283,-4120912.99506293,0.00011,2]
[380105753,1755546641292,-768797.01773935,0.00011,2]
[380105863,1755546642360,-1195.23958398,0.00011,2]
[380105865,1755546642372,-2981.12084809,0.00011,2]
[380105868,1755546642384,-778.752,0.00011,2]
[380105870,1755546642444,-2167.410855,0.00011,2]
[380105871,1755546642455,-28290.0,0.00011,2]
[380105872,1755546642469,-19184.393073,0.00011,2]
[380105873,1755546642480,-15571.23787893,0.00011,2]
[380105875,1755546642491,-17100.75906833,0.00011,2]
[380105877,1755546642503,-388.12002,0.00011,2]
[380105879,1755546642513,-596.25,0.00011,2]
[380105886,1755546642568,-3276.90500012,0.00011,2]
[380105888,1755546642579,-476.1899999,0.00011,2]
[380105892,1755546642606,-528.45166818,0.00011,2]
[380106195,1755546645432,-181.39540595,9.638e-05,2]
[380106197,1755546645442,-224.56889189,0.00011,2]
[380106202,1755546645487,-3209.49428553,0.00011,2]
[380106205,1755546645499,-2367.10177124,0.00011,2]
[380106209,1755546645532,-21432.30787386,0.00011,2]
[380106212,1755546645544,-1003.82755308,0.00011,2]
[380106229,1755546645698,-334.46027562,0.00011,2]
[380106236,1755546645756,-3685.10627657,0.00011,2]
[380106504,1755546648350,-944.87650117,0.0001089,2]
[380106510,1755546648427,-659.35455698,0.0001089,2]
[380106512,1755546648439,-571.0664,0.0001089,2]
[380106513,1755546648450,-476.67,0.0001089,2]
[380108933,1755546693651,-334.45237977,9.63e-05,2]
[380108934,1755546693683,-213.72051824,9.638e-05,2]
[380108935,1755546693748,-334.45237977,0.00010694,2]
[380108936,1755546693767,-213.72051824,0.00010694,2]
[380108937,1755546693779,-14474.89208291,0.00010694,2]
[380108938,1755546759127,-334.45237977,0.00010236,2]
[380108939,1755546787012,-213.72051824,0.0001015,2]
[380108940,1755546994792,-201.03151633,0.00010003,2]
[380108941,1755546994822,-350.40552588,0.00010003,2]
[380108942,1755546994850,-198.51534694,0.00010003,2]
[380108943,1755546995766,-12287.3544066,0.00010004,2]
[380108944,1755547046154,-334.45237977,9.953e-05,2]
[380108945,1755547307767,-213.72051824,9.853e-05,2]
[380108946,1755547407329,150.0,9.2e-05,2]
[380108956,1755547708825,-198.51534694,9.709e-05,2]
[380108957,1755547747366,-350.40552588,9.615e-05,2]
[380108958,1755547766337,-45.51447412,9.615e-05,2]
[380108959,1755547766388,-243.42343153,9.645e-05,2]
[380108964,1755547831855,-394.67656847,9.645e-05,2]
[380108965,1755547831865,-417.16,9.758e-05,2]
[380108966,1755547831874,-198.51534694,9.774e-05,2]
[380108967,1755547831884,-159.41790877,9.774e-05,2]
[380108968,1755547831894,-245.28386812,9.774e-05,2]
[380108969,1755547831903,-2000.0,9.775e-05,2]
[380108970,1755547831913,-500.0,9.775e-05,2]
[380108971,1755547831922,-152.45,9.793e-05,2]
[380108972,1755547831932,-1200.0,9.841e-05,2]
[380108973,1755547831942,-500.0,9.842e-05,2]
[380108974,1755547831951,-1000.0,9.868e-05,2]
[380108975,1755547831960,-300.0,9.89e-05,2]
[380108976,1755547831969,-300.0,9.89e-05,2]
[380108977,1755547831978,-300.0,9.891e-05,2]
[380108978,1755547831988,-317.44,9.892e-05,2]
[380108979,1755547831998,-23184.2106702,0.00010004,2]
[380108980,1755547832031,-18.1149232,0.00010004,2]
[380108981,1755547832041,-170.0,0.00010025,7]
[380108982,1755547832050,-331.1788637,0.00010041,2]
[380108983,1755547832061,-137.5311363,0.00010041,2]
[380108984,1755547832070,-288.53859815,0.00010041,2]
[380108985,1755547832082,-180.17140185,0.00010041,2]
[380108986,1755547832091,-281.7588637,0.00010041,2]
[380108987,1755547832103,-186.9511363,0.00010041,2]
[380108988,1755547832113,-323.0488637,0.0001015,2]
[380108989,1755547832126,-422.31538006,0.0001015,2]
[380108990,1755547832164,-540.915238,0.0001015,2]